bitfinex-derivatives/quotes_ETHF0:USTF0_20260104
["timestamp","ask_amount","ask_price","bid_price","bid_amount"]
[1767526717958,3.19,3139.5,3137.3,0.1444852]
[1767526718148,0.98766273,3139.4,3137.3,0.1444852]
[1767526718344,10.711,3139.3,3137.3,0.1444852]
[1767526718545,10.711,3139.3,3137.3,0.14718249]
[1767526719361,3.19,3139.6,3137.3,0.14718249]
[1767526719558,14.88743595,3139.5,3137.3,0.14718249]
[1767526719757,0.98643595,3139.4,3137.3,0.14718249]
[1767526720053,13.901,3139.5,3137.3,0.14718249]
[1767526720255,6.98639374,3139.4,3137.3,0.14718249]
[1767526720459,10.711,3139.3,3137.3,0.14718249]
[1767526720863,6.0,3139.4,3137.3,0.14718249]
[1767526721052,3.19,3139.7,3137.3,0.14718249]
[1767526721249,4.17295101,3139.6,3137.3,0.14718249]
[1767526721448,5.865,3139.5,3137.3,0.14718249]
[1767526721650,11.39937899,3140.7,3137.3,0.14718249]
[1767526721865,0.637,3139.5,3137.3,0.14718249]
[1767526722155,10.593,3139.4,3137.3,0.14718249]
[1767526723658,0.00110299,3139.3,3137.3,0.14718249]
[1767526728064,0.00477411,3138.6,3137.3,0.14718249]
[1767526728255,4.525,3138.5,3137.3,0.14718249]
[1767526732859,4.525,3138.5,3137.3,0.00269729]
[1767526733065,0.00718152,3138.6,3137.3,0.00269729]
[1767526733366,6.818,3138.4,3137.3,0.00269729]
[1767526734373,6.00718152,3138.6,3137.3,0.00269729]
[1767526734667,10.705,3138.5,3137.3,0.00269729]
[1767526735862,16.705,3138.5,3137.3,0.00269729]
[1767526741773,3.188,3138.4,3137.3,0.14617816]
[1767526741966,0.00718152,3138.6,3137.3,0.14617816]
[1767526742476,2.214,3138.5,3137.3,0.14617816]
[1767526744785,7.53,3138.4,3137.3,0.14617816]
[1767526745478,0.00718152,3138.6,3137.3,0.14617816]
[1767526745682,7.529,3138.3,3137.3,0.14617816]
[1767526745880,0.00718152,3138.6,3137.3,0.14617816]
[1767526746078,7.529,3138.2,3137.3,0.14617816]
[1767526747582,0.6373,3138.1,3137.3,0.14617816]
[1767526749381,0.6373,3138.1,3137.3,6.00269729]
[1767526749684,0.6373,3138.1,3137.3,0.00269729]
[1767526753291,7.528,3138.0,3137.3,0.00269729]
[1767526755092,0.6373,3138.1,3137.3,0.00269729]
[1767526755291,7.528,3138.0,3137.3,0.00269729]
[1767526758300,0.6373,3138.1,3137.3,0.14617816]
[1767526758499,7.53,3138.0,3137.4,0.14348087]
[1767526764114,0.6373,3138.1,3137.4,0.14348087]
[1767526764413,7.529,3138.0,3137.4,0.14348087]
[1767526770317,7.529,3138.0,3137.3,0.00269729]
[1767526770516,7.529,3138.0,3137.3,6.00269729]
[1767526772618,0.6373,3137.9,3137.3,6.00269729]
[1767526775423,0.6373,3137.9,3137.3,0.00269729]
[1767526777221,7.551,3137.8,3137.3,0.14368319]
[1767526777822,7.551,3137.7,3137.3,0.14368319]
[1767526780419,7.557,3137.7,3137.3,0.14368319]
[1767526782522,7.562,3137.7,3137.3,0.14368319]
[1767526785034,7.567,3137.7,3137.3,0.14368319]
[1767526785331,0.6373,3137.9,3137.3,0.14368319]
[1767526785533,7.568,3137.8,3137.3,0.14368319]
[1767526786327,0.6373,3137.9,3137.3,0.14368319]
[1767526786526,7.569,3137.8,3137.3,0.14368319]
[1767526791537,7.569,3137.8,3137.3,0.00269729]
[1767526792535,0.6373,3137.9,3137.3,0.00269729]
[1767526792737,7.582,3137.8,3137.3,0.00269729]
[1767526797642,0.00718152,3138.6,3137.3,0.00269729]
[1767526797844,7.592,3138.5,3137.3,0.00269729]
[1767526798141,8.2292,3138.5,3137.3,0.00269729]
[1767526802042,0.01076568,3138.4,3136.7,5.72454319]
[1767526802241,7.602,3138.3,3136.3,7.43947338]
[1767526802443,10.791,3138.2,3136.4,0.13444375]
[1767526803046,10.791,3138.2,3136.4,0.13723759]
[1767526805850,0.6372,3138.5,3136.4,0.13723759]
[1767526806043,7.602,3138.1,3136.4,0.13723759]
[1767526808841,10.789,3138.0,3136.4,0.13723759]
[1767526813347,0.6372,3138.5,3136.4,0.13723759]
[1767526813747,10.786,3138.4,3136.4,0.13723759]
[1767526814750,0.6372,3138.5,3136.4,0.13723759]
[1767526814958,10.787,3138.4,3136.4,0.13723759]
[1767526815655,0.6372,3138.5,3136.4,0.13723759]
[1767526815851,10.788,3138.4,3136.4,0.13723759]
[1767526816058,7.6,3138.3,3136.4,0.13723759]
[1767526816454,7.6,3138.3,3137.4,0.5]
[1767526818364,0.6372,3138.5,3137.4,0.5]
[1767526818662,10.793,3138.4,3137.4,0.5]
[1767526824570,0.6372,3138.5,3137.4,0.5]
[1767526824866,7.624,3138.4,3137.4,0.5]
[1767526827472,0.00718152,3138.6,3137.4,0.5]
[1767526827662,7.633,3138.5,3137.4,0.5]
[1767526827966,0.00718152,3138.6,3137.4,0.5]
[1767526828170,7.634,3138.5,3137.4,0.5]
[1767526828371,0.00718152,3138.6,3137.4,0.5]
[1767526828674,7.634,3138.5,3137.4,0.5]
[1767526828868,8.2712,3138.5,3137.4,0.5]
[1767526829864,7.637,3138.4,3137.4,0.5]
[1767526832276,0.6372,3138.5,3137.4,0.5]
[1767526832468,7.643,3138.4,3137.4,0.5]
[1767526833775,7.645,3138.3,3137.4,0.5]
[1767526834079,0.6372,3138.5,3137.4,0.5]
[1767526834266,7.645,3138.2,3137.4,0.5]
[1767526837881,7.653,3138.1,3137.4,6.5]
[1767526838176,7.653,3138.1,3137.4,0.5]
[1767526841387,0.00718152,3138.6,3137.4,0.5]
[1767526841985,7.66,3138.5,3137.4,0.5]
[1767526842179,8.2972,3138.5,3137.4,0.5]
[1767526842485,0.6372,3138.5,3137.4,0.5]
[1767526842783,7.661,3138.4,3137.4,0.5]
[1767526843681,0.6372,3138.5,3137.4,0.63349648]
[1767526843887,7.662,3138.4,3137.4,6.63349648]
[1767526844382,7.662,3138.4,3137.4,0.63349648]
[1767526844983,7.662,3138.4,3137.4,6.63349648]
[1767526845278,0.6372,3138.5,3137.4,6.63349648]
[1767526845478,7.665,3138.4,3137.4,6.63349648]
[1767526846687,7.667,3138.4,3137.6,0.13349648]
[1767526847478,0.6372,3138.5,3137.6,0.13349648]
[1767526847678,7.671,3138.4,3137.6,0.13349648]
[1767526848078,8.3082,3138.5,3137.6,0.13349648]
[1767526848283,0.6372,3138.5,3137.6,0.13349648]
[1767526848470,8.3092,3138.5,3137.6,0.13349648]
[1767526854688,8.3092,3138.5,3137.6,6.13349648]
[1767526854987,7.698,3138.4,3137.6,6.13349648]
[1767526855189,7.699,3138.4,3137.6,6.13349648]
[1767526856091,7.699,3138.4,3137.7,40.8]
[1767526861491,0.6372,3138.5,3137.7,46.8]
[1767526861796,0.6372,3138.5,3137.8,0.13633663]
[1767526863492,0.6372,3138.5,3137.9,0.13633663]
[1767526864295,0.00718152,3138.6,3137.9,0.13633663]
[1767526864600,0.00718152,3138.6,3137.9,6.13633663]
[1767526864791,0.00718152,3138.6,3138.0,0.13633663]
[1767526864987,7.731,3138.8,3138.0,0.13633663]
[1767526865597,0.75004718,3139.2,3138.0,0.13633663]
[1767526865898,0.50852624,3138.7,3138.0,0.13633663]
[1767526866099,0.50852624,3138.7,3138.1,0.13633663]
[1767526869705,0.00477411,3138.9,3138.1,0.13633663]
[1767526869998,0.00322352,3139.2,3138.3,0.13633663]
[1767526870998,0.64187411,3139.1,3138.3,0.13633663]
[1767526871905,0.64187411,3139.1,3138.4,0.13633663]
[1767526874607,0.64187411,3139.1,3138.1,0.00477411]
[1767526880315,6.64187411,3139.1,3138.1,0.00477411]
[1767526883115,6.0,3139.0,3138.1,0.00477411]
[1767526883315,7.699,3138.9,3137.2,0.13633663]
[1767526883613,7.699,3138.9,3137.3,40.8]
[1767526888127,7.699,3138.9,3137.3,40.93633663]
[1767526889817,7.699,3138.9,3137.4,0.13633663]
[1767526891829,0.64187411,3139.1,3137.4,0.13633663]
[1767526892019,7.693,3139.0,3137.4,0.13633663]
[1767526894225,0.64187411,3139.1,3137.4,0.13633663]
[1767526894432,7.692,3138.9,3137.4,0.13633663]
[1767526896432,0.6371,3138.8,3137.4,0.13633663]
[1767526906046,0.6371,3138.8,3137.8,0.00477411]
[1767526909450,6.6371,3138.8,3137.8,0.00477411]
[1767526910148,6.0,3138.7,3137.8,0.00477411]
[1767526912353,0.6371,3138.8,3137.8,0.00477411]
[1767526912649,6.0,3138.7,3137.8,0.00477411]
[1767526912849,7.692,3138.9,3137.8,0.00477411]
[1767526913967,0.6371,3138.8,3137.8,0.00477411]
[1767526917863,6.0,3138.7,3137.8,0.00477411]
[1767526921856,9.188,3138.7,3137.8,0.00477411]
[1767526928359,6.0,3138.7,3137.8,0.00477411]
[1767526928566,7.705,3138.6,3137.8,0.00477411]
[1767526930055,6.0,3138.7,3137.8,0.00477411]
[1767526930258,7.708,3138.6,3137.8,0.00477411]
[1767526930459,0.6371,3138.8,3137.8,0.14556113]
[1767526930659,3.63,3138.7,3137.8,0.00477411]
[1767526943579,7.69,3138.6,3137.8,0.00477411]
[1767526943780,0.6371,3138.8,3137.8,0.00477411]
[1767526944077,2.873,3138.7,3137.8,0.14556113]
[1767526945581,0.6372,3138.6,3137.8,0.14556113]
[1767526949981,4.2552,3138.6,3137.8,0.14556113]
[1767526953189,0.6372,3138.6,3137.8,0.14556113]
[1767526953590,0.6372,3138.6,3137.8,0.00477411]
[1767526958094,3.624,3138.5,3137.8,0.00477411]
[1767526960700,0.6372,3138.6,3137.8,0.1448186]
[1767526961394,0.6372,3138.6,3137.9,0.14004449]
[1767526965609,0.6372,3138.6,3137.8,0.00477411]
[1767526971116,4.2512,3138.6,3137.8,0.00477411]
[1767526972717,3.614,3138.6,3137.8,0.00477411]
[1767526973915,0.6372,3138.5,3137.8,0.00477411]
[1767526979225,0.6372,3138.5,3137.8,0.1448186]
[1767526983419,0.6372,3138.5,3137.9,0.13304942]
[1767526983621,0.63242589,3138.5,3138.0,0.13304942]
[1767526983820,0.54213901,3138.5,3138.0,0.13304942]
[1767526984026,0.01286209,3138.5,3138.2,0.13304942]
[1767526984228,0.01286209,3138.5,3137.8,0.13782353]
[1767526984420,0.01286209,3138.5,3137.9,6.0]
[1767526986318,0.01286209,3138.5,3138.1,0.13304942]
[1767526988626,0.01286209,3138.5,3138.2,6.13304942]
[1767526988932,0.00477411,3139.1,3138.3,0.13304942]
[1767526989126,0.00477411,3139.1,3138.3,40.93304942]
[1767526989932,0.00477411,3139.1,3138.3,40.8]
[1767526999244,0.00477411,3139.1,3138.3,40.93304942]
[1767527001840,0.00477411,3139.1,3138.4,0.13304942]
[1767527003242,0.00477411,3139.1,3138.4,6.13304942]
[1767527005935,0.00322352,3139.2,3138.5,0.13304942]
[1767527007147,0.00799763,3139.2,3138.5,0.13304942]
[1767527012951,0.00799763,3139.2,3138.3,40.8]
[1767527021255,0.00799763,3139.2,3138.3,40.93913684]
[1767527025758,0.13462141,3140.9,3138.4,0.13913684]
[1767527025957,0.13462141,3140.7,3138.8,5.86756022]
[1767527026261,0.13462141,3140.7,3138.9,11.685]
[1767527026850,0.13847603,3140.7,3138.9,11.68796681]
[1767527027664,0.13462141,3140.5,3138.9,11.82710365]
[1767527027856,0.13462141,3140.5,3139.0,0.13913684]
[1767527028665,6.13462141,3140.5,3139.0,0.13913684]
[1767527029055,0.00385462,3140.7,3139.0,0.13913684]
[1767527029256,6.00385462,3140.7,3139.0,0.13913684]
[1767527029457,6.13847603,3140.7,3139.0,0.13913684]
[1767527029653,0.13462141,3140.6,3139.0,0.13913684]
[1767527034368,0.00385462,3140.7,3139.0,0.13913684]
[1767527034571,0.00477411,3140.1,3139.0,0.13913684]
[1767527038571,0.00477411,3140.1,3139.2,0.00477411]
[1767527046587,0.00477411,3140.1,3139.2,0.14821769]
[1767527048393,0.00477411,3140.1,3139.2,0.00477411]
[1767527048694,0.1375529,3140.0,3139.2,0.00477411]
[1767527055299,0.01294896,3140.0,3139.2,0.00477411]
[1767527058197,0.00477411,3140.1,3139.2,0.00477411]
[1767527058402,6.0,3140.0,3139.2,0.00477411]
[1767527063305,0.00477411,3140.1,3139.2,0.00477411]
[1767527063507,6.0,3140.0,3139.2,0.00477411]
[1767527064706,0.00477411,3140.1,3139.2,0.00477411]
[1767527103047,6.00477411,3140.1,3139.2,0.00477411]
[1767527103243,6.13619413,3140.0,3138.9,0.00296681]
[1767527103445,0.13619413,3139.9,3138.7,5.72842338]
[1767527103640,0.13619413,3139.8,3138.4,7.43947338]
[1767527103839,0.13619413,3139.7,3138.4,7.43947338]
[1767527104039,0.13619413,3139.5,3138.4,7.43947338]
[1767527104245,0.13619413,3139.5,3138.0,5.86288863]
[1767527104440,0.13619413,3139.5,3138.0,0.13446525]
[1767527104645,0.13619413,3139.5,3138.0,0.13828074]
[1767527110449,0.13619413,3139.9,3138.0,0.13828074]
[1767527110654,1.005,3139.8,3138.0,0.13828074]
[1767527112553,0.00477411,3140.1,3138.0,0.13828074]
[1767527112753,7.44,3139.8,3138.0,0.13828074]
[1767527115758,0.00477411,3140.1,3138.0,0.13828074]
[1767527115957,7.437,3140.0,3138.0,0.13828074]
[1767527117259,7.57319413,3140.0,3138.0,0.13828074]
[1767527119064,7.57319413,3140.0,3138.2,0.13446525]
[1767527119564,0.13619413,3140.0,3138.2,0.13446525]
[1767527119856,7.434,3139.9,3138.2,0.13446525]
[1767527120063,7.434,3139.9,3138.8,0.00477411]
[1767527120453,0.13619413,3140.0,3138.8,0.00477411]
[1767527120654,7.433,3139.9,3138.8,0.00477411]
[1767527124966,6.13619413,3140.0,3138.8,0.00477411]
[1767527125167,7.44,3139.9,3138.8,0.00477411]
[1767527132668,7.45,3139.8,3138.8,0.00477411]
[1767527132969,7.45,3139.7,3138.8,0.00477411]
[1767527140876,0.13619413,3140.0,3138.8,0.00477411]
[1767527141075,7.449,3139.9,3138.8,0.00477411]
[1767527141976,0.00477411,3140.1,3138.8,0.00477411]
[1767527142178,7.448,3140.0,3138.8,0.00477411]
[1767527143079,7.448,3139.9,3138.8,0.00477411]
[1767527143781,0.00477411,3140.1,3138.8,0.00477411]
[1767527143979,7.447,3140.0,3138.8,0.00477411]
[1767527156184,0.14142801,3139.9,3138.8,0.00477411]
[1767527156788,0.14142801,3139.9,3138.2,5.72842338]
[1767527158097,0.14142801,3139.9,3138.3,0.13163365]
[1767527158590,7.44,3139.8,3138.3,0.13163365]
[1767527163190,0.14142801,3139.9,3138.3,0.13163365]
[1767527163390,7.57342801,3139.9,3138.3,0.13163365]
[1767527165305,0.00477411,3140.1,3138.3,0.13163365]
[1767527165498,0.14892256,3140.1,3138.3,0.13163365]
[1767527166103,0.14892256,3140.1,3138.4,0.13914122]
[1767527169215,0.14892256,3140.1,3138.5,0.13914122]
[1767527184324,2.74792256,3140.1,3138.5,0.13914122]
[1767527195431,0.14892256,3140.1,3138.5,0.13914122]
[1767527217251,0.14892256,3140.1,3138.6,40.8]
[1767527219154,0.00477411,3140.1,3138.7,0.14173643]
[1767527219358,3.05077411,3140.1,3138.7,0.14173643]
[1767527221157,0.00477411,3140.1,3138.7,6.14173643]
[1767527221355,0.00477411,3140.1,3138.8,0.14465046]
[1767527224757,0.14709425,3140.1,3138.6,46.52842338]
[1767527225964,0.14709425,3140.1,3138.6,40.8]
[1767527226764,0.14709425,3140.1,3138.6,40.94465046]
[1767527228469,0.14709425,3140.1,3138.7,0.14465046]
[1767527236276,0.14709425,3140.1,3138.6,40.8]
[1767527236868,0.14709425,3140.1,3138.4,5.72842338]
[1767527237070,0.14709425,3140.1,3138.4,5.87307384]
[1767527237272,0.14709425,3140.1,3138.5,0.14465046]
[1767527237471,0.14709425,3140.1,3138.5,40.94465046]
[1767527242787,0.14709425,3140.1,3138.6,0.14465046]
[1767527269400,0.00477411,3140.1,3138.6,0.14465046]
[1767527281618,0.00477411,3140.1,3139.0,0.00477411]
[1767527281910,0.00477411,3140.1,3139.0,0.13751534]
[1767527298838,7.227,3140.6,3139.1,0.13274123]
[1767527299935,0.00477411,3140.2,3139.1,0.13274123]
[1767527303735,0.00385462,3140.7,3139.2,0.13274123]
[1767527304938,0.00477411,3140.3,3139.2,0.13274123]
[1767527305638,0.00477411,3140.3,3139.3,0.13274123]
[1767527306740,0.00385462,3140.7,3139.3,6.13274123]
[1767527306940,0.00385462,3140.7,3139.3,0.13274123]
[1767527314446,0.00385462,3140.7,3139.5,0.13639577]
[1767527316048,6.00385462,3140.7,3139.5,0.13639577]
[1767527316239,0.00385462,3140.7,3139.1,5.86481915]
[1767527316647,0.00385462,3140.7,3139.1,0.13639577]
[1767527325049,0.00477411,3140.2,3139.1,0.13639577]
[1767527325250,0.00385462,3140.7,3139.1,0.13639577]
[1767527325550,0.00385462,3140.7,3139.1,5.86481915]
[1767527325746,0.00385462,3140.7,3139.2,0.13639577]
[1767527326360,0.00385462,3140.7,3139.3,0.13639577]
[1767527327067,0.00477411,3140.3,3139.3,0.13639577]
[1767527328071,0.00477411,3140.3,3139.4,0.13639577]
[1767527332373,0.00477411,3140.3,3139.5,6.0]
[1767527332569,0.00477411,3140.3,3139.6,0.13639577]
[1767527335168,0.00044316,3140.3,3139.6,0.13639577]
[1767527339374,0.00044316,3140.3,3139.2,0.13639577]
[1767527342778,0.00044316,3140.3,3139.2,5.86481915]
[1767527343077,0.00044316,3140.3,3139.3,0.13883063]
[1767527345180,0.00385462,3140.7,3139.3,0.13883063]
[1767527348880,0.0031827,3140.3,3139.3,0.13883063]
[1767527355385,0.00029582,3140.3,3139.3,0.13883063]
[1767527363591,0.00029582,3140.3,3139.4,0.13883063]
[1767527365295,0.00385462,3140.7,3139.4,0.13883063]
[1767527403124,6.00385462,3140.7,3139.4,0.13883063]
[1767527405329,6.0,3140.6,3139.1,5.72842338]
[1767527405522,0.14453698,3140.6,3139.0,0.14649208]
[1767527405713,0.14453698,3140.5,3139.0,0.14649208]
[1767527407520,0.00385462,3140.7,3138.1,0.14171797]
[1767527407521,0.14453698,3140.3,3138.1,0.14171797]
[1767527407718,0.14453698,3140.1,3138.1,0.14171797]
[1767527407917,1.13184821,3140.0,3138.1,0.14171797]
[1767527408118,0.98731123,3139.9,3138.1,0.14171797]
[1767527408316,0.14453698,3140.0,3138.1,0.14171797]
[1767527413422,6.0,3139.9,3138.1,0.14171797]
[1767527413816,10.229,3139.8,3138.1,0.14171797]
[1767527414126,6.0,3139.9,3138.1,0.14171797]
[1767527414328,10.229,3139.8,3138.1,0.14171797]
[1767527416030,6.14453698,3139.9,3138.1,0.14171797]
[1767527416232,10.231,3139.8,3138.1,0.14171797]
[1767527416927,0.14453698,3139.7,3137.7,0.14171797]
[1767527417432,10.231,3139.6,3137.7,40.94171797]
[1767527417823,10.231,3139.6,3138.0,0.14553346]
[1767527424940,10.37553698,3139.6,3138.0,0.14553346]
[1767527429040,0.14453698,3139.5,3138.0,0.14553346]
[1767527429243,0.14453698,3139.5,3138.0,0.00381549]
[1767527435245,0.13119697,3139.4,3138.0,0.00381549]
[1767527437542,10.231,3139.6,3138.0,0.14889744]
[1767527437751,0.13119697,3139.8,3138.0,0.14889744]
[1767527438051,10.229,3139.7,3138.0,0.14889744]
[1767527438443,10.229,3139.6,3138.0,0.14889744]
[1767527438644,7.042,3139.5,3138.0,0.14889744]
[1767527440156,7.042,3139.5,3138.4,0.00477411]
[1767527443753,13.042,3139.5,3138.4,0.00477411]
[1767527444360,7.042,3139.5,3138.4,0.00477411]
[1767527448846,13.042,3139.5,3138.4,0.00477411]
[1767527449461,0.00477411,3139.3,3138.4,0.00477411]
[1767527472775,7.041,3139.2,3138.4,0.13909375]
[1767527473288,0.00477411,3139.3,3138.4,0.13909375]
[1767527473486,2.59,3139.2,3138.4,0.13909375]
[1767527477379,0.00477411,3139.3,3138.4,0.13909375]
[1767527490401,0.00477411,3139.3,3138.4,0.00477411]
[1767527496805,0.13613963,3139.2,3138.0,0.00381549]
[1767527497610,0.39491111,3139.2,3138.0,0.00381549]
[1767527497801,6.13613963,3139.2,3138.0,0.00381549]
[1767527498109,6.13613963,3139.2,3138.3,0.00477411]
[1767527501905,0.13613963,3139.2,3138.0,0.00381549]
[1767527502100,0.13613963,3139.1,3138.0,0.00381549]
[1767527503196,0.13613963,3139.1,3138.2,0.00477411]
[1767527504511,0.13613963,3139.1,3138.0,0.00381549]
[1767527507511,6.998,3139.0,3138.0,0.13537251]
[1767527507704,6.998,3138.9,3138.0,0.13537251]
[1767527508806,6.998,3138.9,3138.1,0.00477411]
[1767527517613,0.13613963,3138.8,3136.9,5.72842338]
[1767527517916,0.13613963,3138.8,3136.9,5.8599804]
[1767527518117,0.13613963,3138.8,3136.9,0.13155702]
[1767527518716,0.13613963,3138.8,3136.9,0.13486452]
[1767527535741,0.13613963,3138.8,3137.5,0.00477411]
[1767527536644,0.14461045,3138.6,3136.9,0.13486452]
[1767527538445,0.14461045,3138.5,3136.9,0.13486452]
[1767527538640,0.15941,3138.0,3136.9,0.13486452]
[1767527538842,6.992,3137.9,3136.9,0.13486452]
[1767527539845,6.991,3137.9,3136.9,0.13486452]
[1767527540046,0.00477411,3137.7,3136.9,0.13486452]
[1767527540246,6.99577411,3137.7,3136.9,0.13486452]
[1767527543044,0.00477411,3137.7,3136.9,0.13486452]
[1767527543248,6.99,3137.6,3136.9,0.13486452]
[1767527544677,0.14461045,3137.5,3136.0,5.72842338]
[1767527544857,0.15946,3136.9,3135.4,0.13619504]
[1767527545061,6.145,3136.8,3135.4,0.13619504]
[1767527546068,0.15946,3136.9,3135.4,0.13848173]
[1767527546371,4.313,3136.8,3135.4,0.13848173]
[1767527546674,6.987,3136.7,3135.4,0.13848173]
[1767527547173,0.15946,3136.9,3135.4,0.13848173]
[1767527547372,6.986,3136.8,3135.4,0.13848173]
[1767527549666,6.984,3136.7,3135.4,0.13848173]
[1767527549862,0.15946,3136.9,3135.4,0.13848173]
[1767527550068,0.15943,3137.5,3135.6,0.13158922]
[1767527550270,0.644,3137.4,3135.6,0.13158922]
[1767527550577,0.80344,3137.4,3135.7,0.13158922]
[1767527552069,0.15944,3137.4,3135.8,0.13158922]
[1767527552468,1.005,3137.3,3136.0,0.13158922]
[1767527553170,1.005,3137.3,3136.1,0.14525646]
[1767527553367,0.00477411,3137.7,3136.1,0.14525646]
[1767527553573,0.982,3137.6,3136.2,0.14525646]
[1767527553879,0.00477411,3137.7,3136.2,0.14525646]
[1767527554171,0.00477411,3137.7,3135.9,0.14525646]
[1767527554370,0.94377411,3137.7,3136.3,0.14525646]
[1767527555071,0.00477411,3137.7,3136.3,0.14525646]
[1767527555268,1.40477411,3137.7,3136.3,0.14525646]
[1767527555472,0.00477411,3137.7,3136.3,0.14525646]
[1767527555670,6.98077411,3137.7,3136.4,0.14525646]
[1767527557271,6.97877411,3137.7,3136.4,0.14525646]
[1767527557873,6.97877411,3137.7,3136.0,0.14525646]
[1767527559572,0.14335476,3137.6,3136.0,0.14525646]
[1767527559871,7.13819411,3137.7,3136.0,0.14525646]
[1767527561483,0.16419411,3137.7,3136.0,0.14525646]
[1767527561684,6.972,3137.6,3136.0,0.14525646]
[1767527562883,6.971,3137.5,3136.0,0.14525646]
[1767527563383,6.97,3137.4,3136.0,0.14525646]
[1767527564388,0.16419411,3137.7,3136.0,0.14525646]
[1767527564580,1.39627829,3137.6,3136.0,0.14525646]
[1767527564987,0.30327829,3137.6,3136.0,0.14525646]
[1767527565188,6.968,3137.5,3136.0,0.14525646]
[1767527566689,0.15944,3137.4,3136.0,0.14525646]
[1767527568085,6.968,3137.5,3136.0,0.14525646]
[1767527568501,6.964,3137.4,3136.0,0.14525646]
[1767527569585,0.00477411,3137.7,3136.0,0.14525646]
[1767527569782,6.963,3137.6,3136.0,0.14525646]
[1767527571287,6.962,3137.5,3136.0,0.14525646]
[1767527576204,6.959,3137.4,3136.0,0.14525646]
[1767527578301,6.957,3137.4,3136.0,0.14525646]
[1767527578603,0.00477411,3137.7,3136.0,6.14525646]
[1767527578802,6.956,3137.6,3136.0,0.14525646]
[1767527579294,0.00477411,3137.7,3136.0,6.14525646]
[1767527579500,1.703,3137.6,3136.1,0.14525646]
[1767527584505,0.00477411,3137.7,3136.1,0.14525646]
[1767527585003,0.13829283,3137.6,3136.1,0.14525646]
[1767527586909,0.16419411,3137.7,3136.1,0.14525646]
[1767527587301,0.13826364,3137.6,3136.1,0.14525646]
[1767527587610,0.16419411,3137.7,3136.1,0.14525646]
[1767527588811,6.945,3137.6,3136.1,0.14525646]
[1767527589809,6.944,3137.5,3136.1,0.14525646]
[1767527590010,0.00477411,3137.7,3136.1,0.14525646]
[1767527590211,1.092,3137.6,3136.1,0.14525646]
[1767527591011,0.00477411,3137.7,3136.3,0.13785605]
[1767527591605,0.00477411,3137.7,3136.3,6.13785605]
[1767527591908,0.00477411,3137.7,3136.4,0.13785605]
[1767527592308,0.00477411,3137.7,3136.4,6.13785605]
[1767527592501,0.00477411,3137.7,3136.0,11.949]
[1767527592502,0.00477411,3137.7,3136.5,0.13785605]
[1767527594413,0.00477411,3137.7,3136.7,0.13785605]
[1767527594609,0.00323541,3138.5,3136.7,0.13785605]
[1767527594805,0.00323541,3138.5,3136.9,0.29731605]
[1767527595109,0.00323541,3138.5,3137.0,0.13785605]
[1767527596412,0.00323541,3138.5,3137.1,0.13785605]
[1767527596711,0.00323541,3138.5,3137.2,0.13785605]
[1767527598808,0.00323541,3138.5,3136.8,52.75]
[1767527598809,0.14526039,3138.5,3136.9,0.13785605]
[1767527602015,0.00323541,3138.5,3136.9,0.13785605]
[1767527610628,0.14105471,3138.5,3136.9,0.13785605]
[1767527610825,6.14105471,3138.5,3136.9,0.13785605]
[1767527612327,0.1594,3138.2,3136.9,0.13785605]
[1767527612826,0.1594,3138.1,3136.9,0.13785605]
[1767527615434,0.00323541,3138.5,3136.9,0.13785605]
[1767527617029,0.16261541,3138.5,3136.9,0.13785605]
[1767527623426,0.5,3137.4,3136.9,0.13785605]
[1767527625334,0.5,3137.4,3137.0,6.0]
[1767527625536,0.5,3137.4,3137.1,0.14232996]
[1767527625732,0.49204318,3137.4,3137.1,0.14232996]
[1767527633552,0.04348141,3137.4,3136.6,0.15947]
[1767527633758,0.04348141,3137.4,3136.7,0.15947]
[1767527634657,0.04348141,3137.4,3136.8,0.15946]
[1767527635157,0.04348141,3137.4,3136.9,0.15946]
[1767527640353,1.41e-06,3137.4,3137.0,0.15945]
[1767527654673,1.41e-06,3137.4,3137.1,0.15945]
[1767527657570,1.41e-06,3137.4,3137.2,0.15944]
[1767527657774,1.41e-06,3137.4,3137.3,0.15944]
[1767527658371,0.13702585,3138.3,3137.3,0.15944]
[1767527658569,0.13702585,3138.3,3137.4,0.15943]
[1767527659275,0.13702585,3138.3,3137.5,0.15943]
[1767527659467,0.13702585,3138.3,3137.6,0.15942]
[1767527659667,0.00323541,3138.5,3137.6,0.16222329]
[1767527660771,0.00323541,3138.5,3137.6,40.96222329]
[1767527666180,0.00323541,3138.5,3137.7,12.15]
[1767527668078,0.14026126,3138.5,3137.7,12.15]
[1767527673681,6.14026126,3138.5,3137.6,0.00280329]
[1767527673884,0.1405838,3138.4,3137.0,17.40102967]
[1767527674584,0.1405838,3138.3,3137.0,0.15945]
[1767527674990,0.1405838,3138.3,3137.0,0.16329927]
[1767527677589,0.1405838,3138.1,3137.0,0.16329927]
[1767527682688,6.1405838,3138.1,3137.0,0.16329927]
[1767527682889,0.1405838,3138.0,3137.0,0.16329927]
[1767527686095,6.1405838,3138.0,3137.0,0.00384927]
[1767527686300,0.1405838,3137.9,3137.0,0.00384927]
[1767527714525,0.1405838,3137.9,3137.0,0.16329927]
[1767527730038,0.13161207,3137.7,3137.0,0.16329927]
[1767527745654,0.01198073,3137.0,3136.8,12.193]
[1767527745846,0.00166413,3137.0,3136.8,18.193]
[1767527746750,0.00166413,3137.0,3136.8,18.19528799]
[1767527750258,0.13161207,3137.7,3136.8,12.19528799]
[1767527763765,0.13161207,3137.7,3136.9,0.00478186]
[1767527781182,0.13161207,3137.7,3136.9,6.00478186]
[1767527784885,0.13161207,3137.7,3136.9,0.00478186]
[1767527814404,0.13161207,3137.7,3136.9,6.00478186]
[1767527814601,0.13161207,3137.7,3136.9,11.71636153]
[1767527815496,0.13161207,3137.7,3136.9,6.16424186]
[1767527816413,0.13161207,3137.7,3137.0,0.15945]
[1767527816609,0.00478186,3137.8,3137.1,0.15945]
[1767527816910,0.00478186,3137.8,3137.2,12.808]
[1767527821422,0.00323541,3138.5,3137.2,12.808]
[1767527822621,0.00478186,3138.2,3137.2,12.808]
[1767527823624,0.14160833,3138.2,3137.2,12.808]
[1767527824221,0.14160833,3138.2,3137.3,0.15944]
[1767527826221,0.14160833,3138.2,3137.4,0.15943]
[1767527828128,0.00478186,3138.2,3137.5,0.15943]
[1767527828920,0.00478186,3138.2,3137.6,0.15942]